fUSD/lending_fUSD_20240421
["ID","MTS","AMOUNT","RATE_DAILY","PERIOD"]
[323144921,1713711054788,-500.0,0.00017143,2]
[323144922,1713711054797,-2753.82,0.00017143,2]
[323144923,1713711054806,-500.0,0.00017143,2]
[323144924,1713711054816,-766.98,0.00017143,2]
[323144925,1713711054825,-9183.73,0.00017143,2]
[323144926,1713711054835,-4269.48,0.00017143,2]
[323144927,1713711054844,-500.0,0.00017143,2]
[323144928,1713711054853,-500.0,0.00017143,2]
[323144929,1713711054862,-500.0,0.00017143,2]
[323144930,1713711054872,-2382.83,0.00017143,2]
[323144931,1713711054881,-4414.01,0.00017143,2]
[323144932,1713711054890,-500.0,0.00017143,2]
[323144933,1713711054899,-812.11,0.00017143,2]
[323144934,1713711054909,-500.0,0.00017143,2]
[323144935,1713711054917,-686.39,0.00017151,2]
[323144936,1713711054926,-655.03,0.00017151,2]
[323144937,1713711054935,-1370.79,0.00017151,2]
[323144938,1713711054945,-886.37,0.00017151,2]
[323144939,1713711054954,-1106.85,0.00017151,2]
[323144940,1713711054964,-1096.12,0.00017151,2]
[323144941,1713711054973,-619.26,0.00017151,2]
[323144942,1713711054982,-500.0,0.00017151,2]
[323144943,1713711054991,-500.0,0.00017151,2]
[323144944,1713711055000,-500.0,0.00017151,2]
[323144945,1713711055009,-500.0,0.00017151,2]
[323144946,1713711055019,-500.0,0.00017151,2]
[323144947,1713711055028,-500.0,0.00017151,2]
[323144948,1713711055037,-500.0,0.00017151,2]
[323144949,1713711055046,-500.0,0.00017151,2]
[323144950,1713711055055,-500.0,0.00017151,2]
[323144951,1713711055064,-673.67,0.00017151,2]
[323144952,1713711055074,-500.0,0.00017151,2]
[323144953,1713711055083,-440.5,0.00017151,2]
[323144954,1713711055092,-500.0,0.00017151,2]
[323144955,1713711055102,-500.0,0.00017151,2]
[323144956,1713711055111,-500.0,0.00017151,2]
[323144957,1713711055123,-2162.26,0.00017151,2]
[323144958,1713711055133,-500.0,0.00017151,2]
[323144959,1713711055142,-500.0,0.00017151,2]
[323144960,1713711055151,-2400.6,0.00017151,2]
[323144961,1713711055161,-500.0,0.00017151,2]
[323144962,1713711055170,-500.0,0.00017151,2]
[323144963,1713711055179,-150.0,0.00017151,2]
[323144964,1713711055188,-739.17,0.00017151,2]
[323144965,1713711055198,-500.0,0.00017151,2]
[323144966,1713711055207,-500.0,0.00017151,2]
[323144967,1713711055216,-500.0,0.00017151,2]
[323144968,1713711055226,-658.8,0.00017151,2]
[323144969,1713711055235,-2162.22,0.00017151,2]
[323144970,1713711055244,-500.0,0.00017151,2]
[323144971,1713711055253,-551.7,0.00017151,2]
[323144972,1713711055262,-500.0,0.00017151,2]
[323144973,1713711055271,-500.0,0.00017151,2]
[323144974,1713711055280,-500.0,0.00017151,2]
[323144975,1713711055290,-500.0,0.00017151,2]
[323144976,1713711055304,-500.0,0.00017151,2]
[323144977,1713711055313,-500.0,0.00017151,2]
[323144978,1713711055322,-500.0,0.00017151,2]
[323144979,1713711055332,-1133.91,0.00017151,2]
[323144980,1713711055342,-738.93,0.00017151,2]
[323144981,1713711055351,-500.0,0.00017151,2]
[323144982,1713711055360,-714.37,0.00017151,2]
[323144983,1713711055370,-500.0,0.00017151,2]
[323144984,1713711055381,-500.0,0.00017151,2]
[323144985,1713711055391,-500.0,0.00017151,2]
[323144986,1713711055400,-500.0,0.00017151,2]
[323144987,1713711055409,-500.0,0.00017151,2]
[323144988,1713711055418,-500.0,0.00017151,2]
[323144989,1713711055428,-500.0,0.00017151,2]
[323144990,1713711055437,-500.0,0.00017151,2]
[323144991,1713711055446,-500.0,0.00017151,2]
[323144992,1713711055455,-567.15,0.00017151,2]
[323144993,1713711055465,-500.0,0.00017151,2]
[323144994,1713711055474,-623943.05964616,0.00017152,2]
[323144995,1713711055483,-216.927633,0.00017152,2]
[323144996,1713711055492,-2299.31,0.00017152,2]
[323144997,1713711055501,-3736.81,0.00017152,2]
[323144998,1713711055511,-500.0,0.00017152,2]
[323144999,1713711055520,-2690.88,0.00017152,2]
[323145000,1713711055529,-3718.17,0.00017152,2]
[323145001,1713711055538,-2829.76,0.00017152,2]
[323145002,1713711055548,-3397.22,0.00017152,2]
[323145003,1713711055557,-1883.28,0.00017152,2]
[323145004,1713711055566,-2935.02,0.00017152,2]
[323145005,1713711055575,-6601.55,0.00017152,2]
[323145006,1713711055585,-2892.33,0.00017152,2]
[323145007,1713711055594,-5039.94,0.00017152,2]
[323145008,1713711055603,-6523.12,0.00017152,2]
[323145009,1713711055612,-3355.22,0.00017152,2]
[323145010,1713711055624,-7138.69,0.00017152,2]
[323145011,1713711055633,-636.38,0.00017152,2]
[323145012,1713711055642,-2267.91,0.00017152,2]
[323145013,1713711055652,-3771.02,0.00017152,2]
[323145014,1713711055661,-507.57,0.00017152,2]
[323145015,1713711055670,-314.18,0.00017153,2]
[323145016,1713711055679,-500.0,0.00017153,2]
[323145017,1713711055689,-546.13,0.00017153,2]
[323145018,1713711055698,-191.73,0.00017153,2]
[323145019,1713711055707,-269.05,0.00017153,2]
[323145020,1713711055717,-630.44,0.00017153,2]
[323145021,1713711055726,-500.0,0.00017153,2]
[323145022,1713711055735,-317.47,0.00017153,2]
[323145023,1713711055744,-500.0,0.00017153,2]
[323145024,1713711055754,-317.48,0.00017153,2]
[323145025,1713711055764,-184.54,0.00017153,2]
[323145026,1713711055773,-591.57,0.00017153,2]
[323145027,1713711055783,-500.0,0.00017153,2]
[323145028,1713711055792,-153.74,0.00017153,2]
[323145029,1713711055802,-500.0,0.00017153,2]
[323145030,1713711055811,-555.05,0.00017153,2]
[323145031,1713711055821,-303.74074283,0.00017153,2]
[323145032,1713711055830,-500.0,0.00017153,2]
[323145033,1713711055839,-500.0,0.00017153,2]
[323145034,1713711055848,-500.0,0.00017153,2]
[323145035,1713711055857,-621.57,0.00017153,2]
[323145036,1713711055869,-500.0,0.00017153,2]
[323145037,1713711055879,-500.0,0.00017153,2]
[323145038,1713711055888,-196.47,0.00017153,2]
[323145039,1713711055897,-151.61,0.00017153,2]
[323145040,1713711055906,-527.74,0.00017153,2]
[323145041,1713711055915,-500.0,0.00017153,2]
[323145042,1713711055925,-593.13,0.00017153,2]
[323145043,1713711055934,-500.0,0.00017153,2]
[323145044,1713711055943,-500.0,0.00017153,2]
[323145045,1713711055953,-152.76,0.00017153,2]
[323145046,1713711055962,-275.02,0.00017153,2]
[323145047,1713711055971,-500.0,0.00017153,2]
[323145048,1713711055980,-185.04,0.00017153,2]
[323145049,1713711055990,-476.13,0.00017153,2]
[323145050,1713711055999,-500.0,0.00017153,2]
[323145051,1713711056009,-259.59,0.00017153,2]
[323145052,1713711056018,-500.0,0.00017153,2]
[323145053,1713711056027,-500.0,0.00017153,2]
[323145054,1713711056036,-500.0,0.00017153,2]
[323145055,1713711056045,-500.0,0.00017153,2]
[323145056,1713711056055,-430.15,0.00017153,2]
[323145057,1713711056064,-500.0,0.00017153,2]
[323145058,1713711056073,-500.0,0.00017153,2]
[323145059,1713711056083,-500.0,0.00017153,2]
[323145060,1713711056092,-500.0,0.00017153,2]
[323145061,1713711056101,-500.0,0.00017153,2]
[323145062,1713711056110,-197.74,0.00017153,2]
[323145063,1713711056122,-516.69,0.00017153,2]
[323145064,1713711056130,-500.0,0.00017153,2]
[323145065,1713711056139,-266.02,0.00017153,2]
[323145066,1713711056148,-500.0,0.00017153,2]
[323145067,1713711056156,-500.0,0.00017153,2]
[323145068,1713711056165,-500.0,0.00017153,2]
[323145069,1713711056175,-500.0,0.00017153,2]
[323145070,1713711056185,-500.0,0.00017153,2]
[323145071,1713711056194,-500.0,0.00017153,2]
[323145072,1713711056203,-578.46,0.00017153,2]
[323145073,1713711056213,-487.28,0.00017153,2]
[323145074,1713711056222,-500.0,0.00017153,2]
[323145075,1713711056231,-500.0,0.00017153,2]
[323145076,1713711056241,-500.0,0.00017153,2]
[323145077,1713711056250,-168.45,0.00017153,2]
[323145078,1713711056259,-318.82,0.00017153,2]
[323145079,1713711056268,-500.0,0.00017153,2]
[323145080,1713711056278,-500.0,0.00017153,2]
[323145081,1713711056287,-168.96,0.00017153,2]
[323145082,1713711056297,-532.82,0.00017153,2]
[323145083,1713711056309,-583.7,0.00017153,2]
[323145084,1713711056318,-500.0,0.00017153,2]
[323145085,1713711056328,-200.47,0.00017153,2]
[323145086,1713711056337,-345.97,0.00017153,2]
[323145087,1713711056347,-407.47,0.00017153,2]
[323145088,1713711056356,-500.0,0.00017153,2]
[323145089,1713711056365,-500.0,0.00017153,2]
[323145090,1713711056377,-500.0,0.00017153,2]
[323145091,1713711056387,-463.71,0.00017153,2]
[323145092,1713711056396,-531.26,0.00017153,2]
[323145093,1713711056406,-541.87,0.00017153,2]
[323145094,1713711056415,-500.0,0.00017153,2]
[323145095,1713711056424,-546.71,0.00017153,2]
[323145096,1713711056434,-500.0,0.00017153,2]
[323145097,1713711056442,-495.82,0.00017153,2]
[323145098,1713711056451,-161.48,0.00017153,2]
[323145099,1713711056461,-500.0,0.00017153,2]
[323145100,1713711056471,-500.0,0.00017153,2]
[323145101,1713711056481,-500.0,0.00017153,2]
[323145102,1713711056491,-500.0,0.00017153,2]
[323145103,1713711056500,-500.0,0.00017153,2]
[323145104,1713711056510,-500.0,0.00017153,2]
[323145105,1713711056519,-331.78,0.00017153,2]
[323145106,1713711056529,-495.9,0.00017153,2]
[323145107,1713711056538,-421.72,0.00017153,2]
[323145108,1713711056547,-500.0,0.00017153,2]
[323145109,1713711056556,-327.55,0.00017153,2]
[323145110,1713711056565,-380.836241,0.00017153,2]
[323145111,1713711056575,-500.0,0.00017153,2]
[323145112,1713711056584,-231.83,0.00017153,2]
[323145113,1713711056592,-500.0,0.00017153,2]
[323145114,1713711056601,-257.05,0.00017153,2]
[323145115,1713711056610,-500.0,0.00017153,2]
[323145116,1713711056622,-543.23,0.00017153,2]
[323145117,1713711056631,-500.0,0.00017153,2]
[323145118,1713711056640,-500.0,0.00017153,2]
[323145119,1713711056648,-502.38,0.00017153,2]
[323145120,1713711056657,-277.09,0.00017153,2]
[323145121,1713711056666,-158.88,0.00017153,2]
[323145122,1713711056675,-500.0,0.00017153,2]
[323145123,1713711056684,-164.92,0.00017153,2]
[323145124,1713711056693,-500.0,0.00017153,2]
[323145125,1713711056702,-309.64,0.00017153,2]
[323145126,1713711056711,-500.0,0.00017153,2]
[323145127,1713711056721,-500.0,0.00017153,2]
[323145128,1713711056730,-500.0,0.00017153,2]
[323145129,1713711056739,-500.0,0.00017153,2]
[323145130,1713711056748,-500.0,0.00017153,2]
[323145131,1713711056757,-430.02,0.00017153,2]
[323145132,1713711056766,-500.0,0.00017153,2]
[323145133,1713711056775,-500.0,0.00017153,2]
[323145134,1713711056784,-500.0,0.00017153,2]
[323145135,1713711056793,-199.15,0.00017153,2]
[323145136,1713711056802,-289.97,0.00017153,2]
[323145137,1713711056811,-176.64,0.00017153,2]
[323145138,1713711056820,-500.0,0.00017153,2]
[323145139,1713711056829,-500.0,0.00017153,2]
[323145140,1713711056838,-153.38,0.00017153,2]
[323145141,1713711056847,-500.0,0.00017153,2]
[323145142,1713711056856,-500.0,0.00017153,2]
[323145143,1713711056865,-472.24306494,0.00017153,2]
[323145144,1713711056874,-263.03,0.00017153,2]
[323145145,1713711056883,-340.7,0.00017153,2]
[323145146,1713711056893,-500.0,0.00017153,2]
[323145147,1713711056902,-154.09,0.00017153,2]
[323145148,1713711056911,-461.27,0.00017153,2]
[323145149,1713711056921,-500.0,0.00017153,2]
[323145150,1713711056931,-305.96,0.00017153,2]
[323145151,1713711056940,-462.17,0.00017153,2]
[323145152,1713711056950,-500.0,0.00017153,2]
[323145153,1713711056959,-500.0,0.00017153,2]
[323145154,1713711056969,-327.53,0.00017153,2]
[323145155,1713711056978,-477.66,0.00017153,2]
[323145156,1713711056987,-593.14,0.00017153,2]
[323145157,1713711056997,-500.0,0.00017153,2]
[323145158,1713711057006,-563.65,0.00017153,2]
[323145159,1713711057015,-270.64,0.00017153,2]
[323145160,1713711057025,-500.0,0.00017153,2]
[323145161,1713711057034,-307.3,0.00017153,2]
[323145162,1713711057043,-522.03,0.00017153,2]
[323145163,1713711057053,-500.0,0.00017153,2]
[323145164,1713711057062,-198.68,0.00017153,2]
[323145165,1713711057071,-544.03348636,0.00017153,2]
[323145166,1713711057080,-519.43,0.00017153,2]
[323145167,1713711057089,-500.0,0.00017153,2]
[323145168,1713711057098,-384.61,0.00017153,2]
[323145169,1713711057107,-513.53,0.00017153,2]
[323145170,1713711057117,-341.82,0.00017153,2]
[323145171,1713711057126,-2254.21,0.00017153,2]
[323145172,1713711057135,-500.0,0.00017153,2]
[323145173,1713711057144,-522.2,0.00017153,2]
[323145174,1713711057153,-500.0,0.00017153,2]
[323145175,1713711057163,-500.0,0.00017153,2]
[323145176,1713711057172,-295.35,0.00017153,2]
[323145177,1713711057181,-2319.1,0.00017153,2]
[323145178,1713711057190,-458.78,0.00017153,2]
[323145179,1713711057200,-570.29,0.00017153,2]
[323145180,1713711057209,-500.0,0.00017153,2]
[323145181,1713711057218,-500.0,0.00017153,2]
[323145182,1713711057228,-1007.2,0.00017153,2]
[323145183,1713711057237,-216.43,0.00017153,2]
[323145184,1713711057247,-500.0,0.00017153,2]
[323145185,1713711057256,-356.14,0.00017153,2]
[323145186,1713711057265,-500.0,0.00017153,2]
[323145187,1713711057274,-500.0,0.00017153,2]
[323145188,1713711057283,-423.92,0.00017153,2]
[323145189,1713711057293,-6737.64,0.00017153,2]
[323145190,1713711057302,-648.01628595,0.00017153,2]
[323145191,1713711057313,-500.0,0.00017153,2]
[323145192,1713711057322,-167.32,0.00017153,2]
[323145193,1713711057331,-26942.79,0.00017153,2]
[323145194,1713711057340,-326.15,0.00017153,2]
[323145195,1713711057350,-500.0,0.00017153,2]
[323145196,1713711057363,-588.59,0.00017153,2]
[323145197,1713711057374,-500.0,0.00017153,2]
[323145198,1713711057385,-196.46,0.00017153,2]
[323145199,1713711057395,-216.64,0.00017153,2]
[323145200,1713711057406,-632.0,0.00017153,2]
[323145201,1713711057415,-992.74,0.00017153,2]
[323145202,1713711057425,-500.0,0.00017153,2]
[323145203,1713711057434,-500.0,0.00017153,2]
[323145204,1713711057443,-500.0,0.00017153,2]
[323145205,1713711057452,-151.51,0.00017153,2]
[323145206,1713711057461,-500.0,0.00017153,2]
[323145207,1713711057472,-500.0,0.00017153,2]
[323145208,1713711057482,-246.05,0.00017153,2]
[323145209,1713711057491,-638.44,0.00017153,2]
[323145210,1713711057500,-18213.77,0.00017153,2]
[323145211,1713711057510,-500.0,0.00017153,2]
[323145212,1713711057519,-513.34,0.00017153,2]
[323145213,1713711057529,-500.0,0.00017153,2]
[323145214,1713711057538,-1544.09,0.00017153,2]
[323145215,1713711057548,-500.0,0.00017153,2]
[323145216,1713711057558,-500.0,0.00017153,2]
[323145217,1713711057568,-225.94,0.00017153,2]
[323145218,1713711057577,-500.0,0.00017153,2]
[323145219,1713711057586,-388.46,0.00017153,2]
[323145220,1713711057596,-500.0,0.00017153,2]
[323145221,1713711057607,-307.16,0.00017153,2]
[323145222,1713711057617,-500.0,0.00017153,2]
[323145223,1713711057627,-500.0,0.00017153,2]
[323145224,1713711057637,-500.0,0.00017153,2]
[323145225,1713711057648,-500.0,0.00017153,2]
[323145226,1713711057658,-485.69,0.00017153,2]
[323145227,1713711057668,-439.53,0.00017153,2]
[323145228,1713711057678,-384.48,0.00017153,2]
[323145229,1713711057689,-500.0,0.00017153,2]
[323145230,1713711057699,-500.0,0.00017153,2]
[323145231,1713711057709,-500.0,0.00017153,2]
[323145232,1713711057719,-500.0,0.00017153,2]
[323145233,1713711057728,-500.0,0.00017153,2]
[323145234,1713711057737,-500.0,0.00017153,2]
[323145235,1713711057746,-307.11,0.00017153,2]
[323145236,1713711057756,-300.64,0.00017154,2]
[323145237,1713711057765,-291.03,0.00017154,2]
[323145238,1713711057775,-376.38,0.00017154,2]
[323145239,1713711057784,-228.38,0.00017154,2]
[323145240,1713711057793,-500.0,0.00017154,2]
[323145241,1713711057802,-254.0,0.00017154,2]
[323145242,1713711057811,-480.71,0.00017154,2]
[323145243,1713711057821,-198.26,0.00017154,2]
[323145244,1713711057831,-357.52,0.00017154,2]
[323145245,1713711057841,-500.0,0.00017154,2]
[323145246,1713711057850,-500.0,0.00017154,2]
[323145247,1713711057859,-539.58,0.00017154,2]
[323145248,1713711057870,-502.94673927,0.00017154,2]
[323145249,1713711057879,-500.0,0.00017154,2]
[323145250,1713711057889,-500.0,0.00017154,2]
[323145251,1713711057900,-500.0,0.00017154,2]
[323145252,1713711057909,-502.44751691,0.00017154,2]
[323145253,1713711057919,-500.0,0.00017154,2]
[323145254,1713711057929,-500.0,0.00017154,2]
[323145255,1713711057939,-500.0,0.00017154,2]
[323145256,1713711057948,-500.0,0.00017154,2]
[323145257,1713711057957,-500.0,0.00017154,2]
[323145258,1713711057967,-612.83,0.00017154,2]
[323145259,1713711057976,-500.0,0.00017154,2]
[323145260,1713711057985,-500.0,0.00017154,2]
[323145261,1713711057995,-500.0,0.00017154,2]
[323145262,1713711058005,-500.0,0.00017154,2]
[323145263,1713711058015,-500.0,0.00017154,2]
[323145264,1713711058024,-500.0,0.00017154,2]
[323145265,1713711058034,-500.0,0.00017154,2]
[323145266,1713711058043,-1000.0,0.00017154,2]
[323145267,1713711058052,-691.86,0.00017154,2]
[323145268,1713711058062,-500.0,0.00017154,2]
[323145269,1713711058071,-500.0,0.00017154,2]
[323145270,1713711058080,-500.0,0.00017154,2]
[323145271,1713711058090,-500.0,0.00017154,2]
[323145272,1713711058099,-500.0,0.00017154,2]
[323145273,1713711058108,-500.0,0.00017154,2]
[323145274,1713711058118,-500.0,0.00017154,2]
[323145275,1713711058128,-500.0,0.00017154,2]
[323145276,1713711058138,-500.0,0.00017154,2]
[323145277,1713711058147,-500.0,0.00017154,2]
[323145278,1713711058157,-500.0,0.00017154,2]
[323145279,1713711058166,-500.0,0.00017154,2]
[323145280,1713711058175,-500.0,0.00017154,2]
[323145281,1713711058185,-500.0,0.00017154,2]
[323145282,1713711058194,-159.71,0.00017154,2]
[323145283,1713711058204,-500.0,0.00017154,2]
[323145284,1713711058213,-500.0,0.00017154,2]
[323145285,1713711058223,-500.0,0.00017154,2]
[323145286,1713711058232,-500.0,0.00017154,2]
[323145287,1713711058241,-500.0,0.00017154,2]
[323145288,1713711058250,-500.0,0.00017154,2]
[323145289,1713711058260,-500.0,0.00017154,2]
[323145290,1713711058270,-500.0,0.00017154,2]
[323145291,1713711058280,-500.0,0.00017154,2]
[323145292,1713711058289,-500.0,0.00017154,2]
[323145293,1713711058298,-500.0,0.00017154,2]
[323145294,1713711058311,-500.0,0.00017154,2]
[323145295,1713711058320,-500.0,0.00017154,2]
[323145296,1713711058330,-500.0,0.00017154,2]
[323145297,1713711058340,-500.0,0.00017154,2]
[323145298,1713711058350,-500.0,0.00017154,2]
[323145299,1713711058360,-500.0,0.00017154,2]
[323145300,1713711058557,-500.0,0.00017154,2]
[323145301,1713711058568,-189.87,0.00017154,2]
[323145302,1713711058578,-255.2327174,0.00017154,2]
[323145303,1713711058588,-575.84,0.00017154,2]
[323145304,1713711058598,-185.68,0.00017154,2]
[323145305,1713711058608,-500.0,0.00017154,2]
[323145306,1713711058618,-504.96,0.00017154,2]
[323145307,1713711058628,-501.11,0.00017154,2]
[323145308,1713711058639,-500.0,0.00017154,2]
[323145309,1713711058648,-500.0,0.00017154,2]
[323145310,1713711058658,-500.0,0.00017154,2]
[323145311,1713711058668,-2252.78,0.00017154,2]
[323145312,1713711058678,-500.0,0.00017154,2]
[323145313,1713711058687,-500.0,0.00017154,2]
[323145314,1713711058697,-265.44,0.00017154,2]
[323145315,1713711058706,-500.0,0.00017154,2]
[323145316,1713711058716,-500.0,0.00017154,2]
[323145317,1713711058725,-500.0,0.00017154,2]
[323145318,1713711058735,-500.0,0.00017154,2]
[323145319,1713711058745,-500.0,0.00017154,2]
[323145320,1713711058755,-331.39,0.00017154,2]
[323145321,1713711058764,-500.0,0.00017154,2]
[323145322,1713711058774,-500.0,0.00017154,2]
[323145323,1713711058785,-500.0,0.00017154,2]
[323145324,1713711058794,-334.94,0.00017154,2]
[323145325,1713711058804,-327.52,0.00017154,2]
[323145326,1713711058814,-500.0,0.00017154,2]
[323145327,1713711058823,-500.0,0.00017154,2]
[323145328,1713711058833,-500.0,0.00017154,2]
[323145329,1713711058843,-269.73,0.00017154,2]
[323145330,1713711058852,-500.0,0.00017154,2]
[323145331,1713711058862,-500.0,0.00017154,2]
[323145332,1713711058874,-500.0,0.00017154,2]
[323145333,1713711058883,-500.0,0.00017154,2]
[323145334,1713711058892,-500.0,0.00017154,2]
[323145335,1713711058901,-500.0,0.00017154,2]
[323145336,1713711058911,-1899.94,0.00017154,2]
[323145337,1713711058921,-500.0,0.00017154,2]
[323145338,1713711058930,-500.0,0.00017154,2]
[323145339,1713711058939,-500.0,0.00017154,2]
[323145340,1713711058950,-500.0,0.00017154,2]
[323145341,1713711058959,-500.0,0.00017154,2]
[323145342,1713711058969,-678.78,0.00017154,2]
[323145343,1713711058979,-500.0,0.00017154,2]
[323145344,1713711058987,-500.0,0.00017154,2]
[323145345,1713711058997,-500.0,0.00017154,2]
[323145346,1713711059006,-500.0,0.00017154,2]
[323145347,1713711059015,-1762.93,0.00017154,2]
[323145348,1713711059025,-519.79,0.00017154,2]
[323145349,1713711059034,-500.0,0.00017154,2]
[323145350,1713711059043,-500.0,0.00017154,2]
[323145351,1713711059053,-533.13,0.00017154,2]
[323145352,1713711059062,-500.0,0.00017154,2]
[323145353,1713711059071,-500.0,0.00017154,2]
[323145354,1713711059081,-581.41,0.00017154,2]
[323145355,1713711059090,-558.62,0.00017154,2]
[323145356,1713711059099,-500.0,0.00017154,2]
[323145357,1713711059109,-500.0,0.00017154,2]
[323145358,1713711059120,-258.73,0.00017154,2]
[323145359,1713711059129,-500.0,0.00017154,2]
[323145360,1713711059138,-500.0,0.00017154,2]
[323145361,1713711059147,-673.83,0.00017154,2]
[323145362,1713711059157,-500.0,0.00017154,2]
[323145363,1713711059166,-408.81,0.00017154,2]
[323145364,1713711059176,-500.0,0.00017154,2]
[323145365,1713711059185,-500.0,0.00017154,2]
[323145366,1713711059195,-500.0,0.00017154,2]
[323145367,1713711059203,-500.0,0.00017154,2]
[323145368,1713711059213,-500.0,0.00017154,2]
[323145369,1713711059223,-300.47084821,0.00017155,2]
[323145370,1713711059232,-500.0,0.00017155,2]
[323145371,1713711059242,-500.0,0.00017155,2]
[323145372,1713711059251,-500.0,0.00017156,2]
[323145373,1713711059261,-500.0,0.00017156,2]
[323145374,1713711059271,-500.0,0.00017156,2]
[323145375,1713711059280,-500.0,0.00017156,2]
[323145376,1713711059290,-509.88,0.00017156,2]
[323145377,1713711059299,-500.0,0.00017156,2]
[323145378,1713711059311,-500.0,0.00017156,2]
[323145379,1713711059321,-500.0,0.00017156,2]
[323145380,1713711059330,-500.0,0.00017156,2]
[323145381,1713711059339,-500.0,0.00017156,2]
[323145382,1713711059350,-500.0,0.00017156,2]
[323145383,1713711059359,-500.0,0.00017156,2]
[323145384,1713711059370,-500.0,0.00017156,2]
[323145385,1713711059382,-500.0,0.00017156,2]
[323145386,1713711059393,-500.0,0.00017156,2]
[323145387,1713711059402,-500.0,0.00017156,2]
[323145388,1713711059411,-500.0,0.00017156,2]
[323145389,1713711059420,-573.16,0.00017157,2]
[323145390,1713711059430,-500.0,0.00017157,2]
[323145391,1713711059440,-500.0,0.00017157,2]
[323145392,1713711059449,-179.45128129,0.00017157,2]
[323145393,1713711059459,-500.0,0.00017157,2]
[323145394,1713711059469,-500.0,0.00017157,2]
[323145395,1713711059478,-500.0,0.00017157,2]
[323145396,1713711059487,-13968.06861039,0.00017187,2]
[323145397,1713711059496,-175.02,0.00017249,2]
[323145398,1713711059506,-3365.12252339,0.0001726,2]
[323145399,1713711059515,-619.0,0.00017261,2]
[323145400,1713711059525,-13968.06861039,0.00017289,2]
[323145401,1713711059534,-8463.063721,0.00017291,2]
[323145402,1713711059543,-2608.206455,0.00017291,2]
[323145403,1713711059553,-10432.825821,0.00017291,2]
[323145404,1713711059562,-33852.254884,0.00017291,2]
[323145405,1713711059571,-7199.807428,0.00017291,2]
[323145406,1713711059580,-14399.614855,0.00017291,2]
[323145407,1713711059589,-521.641291,0.00017291,2]
[323145408,1713711059599,-7212.53573,0.00017291,2]
[323145409,1713711059609,-2068.0,0.000173,2]
[323145410,1713711059620,-13968.06861039,0.0001739,2]
[323145411,1713711059629,-7461.65,0.00017412,2]
[323145412,1713711059639,-2609.24,0.00017415,2]
[323145413,1713711059648,-500.0,0.00017415,2]
[323145414,1713711059657,-758.2,0.00017415,2]
[323145415,1713711059667,-1005.83,0.00017415,2]
[323145416,1713711059676,-2856.58,0.00017415,2]
[323145417,1713711059685,-500.0,0.00017415,2]
[323145418,1713711059696,-701.12,0.00017415,2]
[323145419,1713711059706,-4417.18,0.00017415,2]
[323145420,1713711059715,-3281.08,0.00017415,2]